bitfinex/quotes_ETHUSD_20230118
["timestamp","ask_amount","ask_price","bid_price","bid_amount"]
[1674057904146,27.9323,1542.4,1541.5,4.37520112]
[1674057904370,13.45424,1542.3,1541.4,0.066]
[1674057904517,38.89574,1542.3,1541.3,6.55382]
[1674057904727,1.0,1542.2,1541.3,0.066]
[1674057905053,1.0,1542.2,1541.2,13.15999329]
[1674057905054,12.9707,1542.0,1541.4,0.04758]
[1674057905376,0.066,1542.0,1541.4,13.02275]
[1674057905690,0.066,1542.1,1541.4,13.08875]
[1674057905888,25.3755,1542.6,1541.5,1.4867]
[1674057906098,25.4415,1542.6,1541.8,12.97162]
[1674057906373,25.4415,1542.6,1541.8,17.89942112]
[1674057906683,25.4415,1542.6,1542.1,19.45386]
[1674057906894,25.4415,1542.6,1542.3,12.96746]
[1674057907042,25.4415,1542.6,1542.3,13.03346]
[1674057907390,0.066,1542.6,1542.5,6.48298]
[1674057907606,2.13070466,1543.0,1542.5,6.48298]
[1674057907607,1.066,1543.1,1542.5,4.74763506]
[1674057907937,27.76603231,1543.2,1542.5,11.16461506]
[1674057908179,0.73659451,1543.2,1542.7,19.44551]
[1674057908386,0.67056521,1543.3,1542.7,6.5478]
[1674057908603,27.0954,1543.4,1542.9,6.48109]
[1674057908751,27.76596521,1543.4,1542.9,0.066]
[1674057908962,27.76596521,1543.4,1542.8,6.48164]
[1674057909172,28.77241786,1543.4,1542.9,3.0]
[1674057909443,28.77241786,1543.4,1542.8,0.066]
[1674057909444,27.76596521,1543.4,1542.8,3.066]
[1674057909671,0.67104768,1543.2,1542.7,0.066]
[1674057909968,7.15161695,1543.1,1542.4,0.066]
[1674057910119,6.54454,1543.1,1542.4,0.002]
[1674057910331,2.22327211,1543.1,1542.3,7.54974]
[1674057910568,2.15727211,1543.1,1542.3,6.54957]
[1674057910749,30.27680043,1543.2,1542.3,13.03339]
[1674057911123,1.79696526,1543.1,1542.3,17.4047382]
[1674057911290,1.79696526,1543.1,1542.4,0.4864]
[1674057911501,0.63674173,1543.0,1542.3,0.066]
[1674057911861,6.48176,1542.8,1542.0,0.066]
[1674057912025,11.22485238,1542.8,1541.8,6.55173]
[1674057912248,4.82539125,1542.7,1541.8,0.066]
[1674057912600,14.45156,1542.6,1541.6,5.4373482]
[1674057912782,19.45233,1542.3,1541.6,0.066]
[1674057912992,19.45233,1542.3,1541.2,6.67162329]
[1674057912993,12.96971,1542.1,1541.2,8.20962329]
[1674057913206,0.066,1542.1,1541.6,6.48643]
[1674057913378,9.74659157,1542.5,1541.8,12.97174]
[1674057913379,0.066,1542.5,1541.8,12.97174]
[1674057913598,1.0,1542.6,1541.8,13.03774]
[1674057913921,41.76796161,1542.7,1541.8,6.55192]
[1674057914269,41.76796161,1542.7,1541.9,3.0]
[1674057914479,1.0,1542.6,1541.9,3.0]
[1674057914651,6.48276,1542.6,1541.9,3.0]
[1674057914866,0.066,1542.6,1541.9,9.48538]
[1674057915099,33.1208,1542.7,1541.9,9.55138]
[1674057915273,26.6385,1542.7,1541.9,17.03688]
[1674057915714,26.6385,1542.7,1542.0,0.4866]
[1674057915977,26.6385,1542.7,1542.2,6.4842]
[1674057916291,26.6385,1542.7,1542.3,15.96751]
[1674057916503,0.066,1542.7,1542.3,16.03351]
[1674057916827,25.5844,1543.2,1542.6,12.96478]
[1674057917155,0.066,1543.2,1542.8,12.96323]
[1674057917446,1.0,1543.5,1543.0,12.96108]
[1674057917668,0.066,1543.7,1543.2,19.43985]
[1674057917881,0.71613562,1543.8,1543.3,0.4862]
[1674057917882,0.04554159,1543.8,1543.3,0.4862]
[1674057918024,0.04554159,1543.8,1543.2,6.54595]
[1674057918025,0.67063709,1543.7,1543.2,6.54595]
[1674057918441,0.04554159,1543.8,1543.3,3.4862]
[1674057918715,0.04554159,1543.8,1543.4,6.47899]
[1674057918863,0.04554159,1543.8,1543.6,6.47836]
[1674057918864,1.05163438,1543.8,1543.6,6.47836]
[1674057919078,1.79773192,1543.7,1543.6,0.701]
[1674057919391,0.67250823,1543.7,1543.5,0.5521]
[1674057919561,1.79798782,1543.7,1543.5,0.635]
[1674057919791,1.79798782,1543.7,1543.4,6.5451]
[1674057919792,2.13428144,1543.7,1543.4,6.5451]
[1674057919921,1.79791568,1543.6,1543.4,0.066]
[1674057920132,0.6425776,1543.6,1543.3,3.0]
[1674057920347,0.6425776,1543.6,1543.3,9.47958]
[1674057920624,0.6425776,1543.6,1543.3,9.54558]
[1674057920775,2.35405112,1543.6,1543.3,9.54558]
[1674057921143,2.35405112,1543.6,1543.3,16.0252]
[1674057921348,2.87284549,1543.7,1543.4,0.4861]
[1674057921349,1.41119189,1543.7,1543.4,0.4861]
[1674057921660,0.04554159,1543.8,1543.5,12.95756]
[1674057921893,1.0560595,1543.8,1543.6,3.0]
[1674057922195,2.35797391,1543.7,1543.5,0.066]
[1674057922511,1.12527984,1543.6,1543.3,6.28131]
[1674057922825,1.01051791,1543.7,1543.3,0.066]
[1674057923183,1.01094504,1543.5,1543.2,0.066]
[1674057923361,1.01094504,1543.5,1543.2,6.48002]
[1674057923549,1.01094504,1543.5,1543.2,6.54602]
[1674057923759,2.13632503,1543.5,1543.2,6.54602]
[1674057924090,1.01093764,1543.5,1543.2,0.066]
[1674057924304,2.35839364,1543.6,1543.3,3.0]
[1674057924472,1.07693764,1543.7,1543.3,6.47949]
[1674057924687,1.39299759,1543.8,1543.4,3.0]
[1674057924902,1.05631616,1543.8,1543.5,19.43607]
[1674057925111,0.04554159,1543.8,1543.6,3.0]
[1674057925459,0.066,1544.2,1543.7,24.76777166]
[1674057925684,0.0521268,1544.3,1543.9,19.4313]
[1674057925978,1.0104494,1544.2,1543.9,0.243]
[1674057926150,1.12499723,1544.1,1543.9,0.177]
[1674057926350,1.12499723,1544.0,1543.9,0.177]
[1674057926558,1.12505199,1544.0,1543.9,0.177]
[1674057927033,0.33189016,1543.8,1543.4,6.54515]
[1674057927182,0.33189016,1543.8,1543.4,0.066]
[1674057927398,2.46772779,1543.8,1543.2,0.066]
[1674057927608,1.01060682,1543.7,1543.2,6.47999]
[1674057927873,2.13583763,1543.7,1543.3,6.47962]
[1674057928027,1.67970906,1543.8,1543.3,13.02524]
[1674057928028,1.40849698,1543.8,1543.3,13.02524]
[1674057928240,1.34249698,1543.8,1543.4,1.0]
[1674057928492,0.33189016,1543.8,1543.5,12.95747]
[1674057928765,0.33189016,1543.8,1543.5,13.02347]
[1674057929114,0.33189016,1543.8,1543.7,19.43382]
[1674057929330,0.33189016,1543.8,1543.7,23.49982]
[1674057930459,0.673529,1544.2,1543.7,23.49982]
[1674057930695,1.73603374,1544.3,1543.8,15.95481]
[1674057930906,1.68390694,1544.2,1543.8,3.066]
[1674057931147,1.68390694,1544.2,1543.8,3.0]
[1674057931293,1.79808579,1544.1,1543.7,3.066]
[1674057931626,1.79808579,1544.1,1543.1,44.54825919]
[1674057931627,2.33435633,1543.6,1543.3,7.47947]
[1674057931842,2.33435633,1543.6,1543.3,13.02509]
[1674057932025,2.33435633,1543.6,1543.4,1.0]
[1674057932235,2.33435633,1543.6,1543.5,6.47878]
[1674057932465,2.33435633,1543.6,1543.5,0.066]
[1674057932700,17.42652245,1543.6,1543.3,0.066]
[1674057932929,17.42652245,1543.6,1542.9,6.48094]
[1674057932930,1.29382514,1543.5,1542.9,6.48094]
[1674057933240,14.64065986,1543.5,1543.4,0.509]
[1674057933413,14.85627581,1543.5,1543.4,0.509]
[1674057933784,1.22531476,1543.5,1543.4,0.509]
[1674057934090,29.76945633,1543.6,1543.4,0.509]
[1674057934235,29.76945633,1543.6,1543.4,13.4674]
[1674057934236,2.40035633,1543.6,1543.4,13.4674]
[1674057934569,2.33435633,1543.6,1543.5,14.22656]
[1674057934760,2.33435633,1543.6,1543.5,14.29256]
[1674057934975,2.33435633,1543.6,1543.5,15.29256]
[1674057935226,2.33435633,1543.6,1543.5,18.29256]
[1674057935819,6.33e-06,1543.6,1543.5,18.29256]
[1674057936035,6.33e-06,1543.6,1543.5,18.35081]
[1674057936244,0.60065296,1544.0,1543.5,18.29256]
[1674057936455,0.60065296,1544.0,1543.7,6.47785]
[1674057936701,0.60065296,1544.0,1543.8,3.0]
[1674057936858,0.60065296,1544.0,1543.9,19.4313]
[1674057937071,0.60065296,1544.0,1543.9,0.066]
[1674057937333,0.60065296,1544.0,1543.9,12.9542]
[1674057937553,2.44278964,1544.6,1544.0,1.1]
[1674057937699,0.054,1544.7,1544.1,19.42776]
[1674057937909,1.73189041,1544.8,1544.1,6.54192]
[1674057938161,0.4857,1544.7,1544.1,0.066]
[1674057938388,0.67202631,1544.6,1544.2,6.47563]
[1674057938549,2.16535043,1544.7,1544.2,0.066]
[1674057938762,1.67967266,1544.6,1544.0,6.54258]
[1674057939017,1.67967266,1544.6,1544.0,0.066]
[1674057939018,1.0,1544.5,1544.0,0.066]
[1674057939240,0.4858,1544.4,1543.9,1.719]
[1674057939390,12.20748264,1544.5,1543.9,1.719]
[1674057939761,0.67163579,1544.2,1543.9,1.719]
[1674057939909,0.4859,1544.1,1543.9,1.719]
[1674057940333,0.3859,1544.2,1543.9,1.719]
[1674057940839,0.73762255,1544.3,1543.9,8.1961]
[1674057940840,1.67904759,1544.3,1543.9,8.1961]
[1674057940952,0.4858,1544.4,1543.9,8.2621]
[1674057941165,0.4858,1544.4,1543.9,18.97907274]
[1674057941427,27.85609507,1544.5,1543.9,14.7392]
[1674057941584,0.066,1544.5,1544.0,3.0]
[1674057941796,0.78955288,1544.8,1544.1,19.42815]
[1674057942119,0.78955288,1544.8,1544.1,6.54205]
[1674057942120,0.4857,1544.7,1544.1,6.54205]
[1674057942372,0.67159507,1544.5,1544.1,0.066]
[1674057942696,0.4858,1544.4,1544.2,3.701]
[1674057942919,0.016,1544.5,1544.2,3.701]
[1674057943059,1.67149336,1544.7,1544.2,3.701]
[1674057943270,0.05195781,1544.8,1544.2,3.02618619]
[1674057943482,1.67880581,1544.6,1544.2,3.02618619]
[1674057943744,0.67156429,1544.5,1544.2,3.02618619]
[1674057943961,15.29882946,1544.6,1544.2,0.02629258]
[1674057943962,1.74499898,1544.6,1544.2,0.02629258]
[1674057944267,8.1533753,1544.6,1544.2,0.02629258]
[1674057944477,0.4858,1544.5,1544.2,0.02629258]
[1674057944796,8.64079689,1544.5,1544.2,0.02629258]
[1674057945008,0.67235071,1544.3,1544.2,0.02629258]
[1674057945227,1.67235071,1544.3,1544.2,0.02629258]
[1674057945533,15.10899071,1544.3,1544.2,9.258e-05]
[1674057945700,1.026,1544.2,1543.7,1.867]
[1674057945940,7.63490211,1544.1,1543.7,1.867]
[1674057946116,7.02842,1544.1,1543.7,1.867]
[1674057946323,13.50502,1544.1,1543.7,1.867]
[1674057946659,14.14176173,1544.1,1543.7,1.867]
[1674057947006,1.0,1544.0,1543.7,1.867]
[1674057947223,6.4771,1543.9,1543.7,1.867]
[1674057947392,0.066,1543.9,1543.7,1.867]
[1674057947601,6.47692,1544.0,1543.7,1.867]
[1674057947602,0.066,1544.0,1543.7,1.867]
[1674057947955,0.67272216,1544.1,1543.7,1.867]
[1674057948115,7.63495216,1544.1,1543.7,1.867]
[1674057948320,0.73872216,1544.1,1543.7,1.867]
[1674057948571,0.67272216,1544.2,1543.7,1.867]
[1674057948742,0.67296461,1544.1,1543.7,1.867]
[1674057948955,6.4771,1543.9,1543.7,1.867]
[1674057949182,6.5431,1543.9,1543.7,1.867]
[1674057949415,1.0,1543.8,1543.4,0.066]
[1674057949625,1.0,1543.8,1543.5,0.792]
[1674057949626,19.91982,1543.7,1543.5,0.792]
[1674057949816,19.98582,1543.7,1543.5,0.792]
[1674057950063,20.65893834,1543.7,1543.5,0.792]
[1674057950250,0.67311834,1543.6,1543.5,0.792]
[1674057950578,14.11593834,1543.6,1543.5,0.792]
[1674057950793,14.18193834,1543.6,1543.0,0.17023613]
[1674057951105,8.64206746,1543.4,1543.0,0.17023613]
[1674057951330,16.19771336,1543.4,1543.0,0.17023613]
[1674057951634,15.18753746,1543.4,1543.0,0.17023613]
[1674057952586,0.4862,1543.3,1543.0,0.17023613]
[1674057952798,12.96008,1543.2,1543.0,0.17023613]
[1674057953121,13.02608,1543.2,1543.0,0.17023613]
[1674057953263,12.97608,1543.2,1543.0,0.17023613]
[1674057953998,0.066,1543.2,1543.0,0.17023613]
[1674057954309,12.96021,1543.2,1543.0,0.17023613]
[1674057954632,2.13714886,1543.1,1543.0,0.17023613]
[1674057954953,16.09806886,1543.1,1543.0,0.17023613]
[1674057955257,14.51312,1543.1,1542.7,0.16886438]
[1674057955474,1.4362,1543.0,1542.7,0.16886438]
[1674057955624,20.11911997,1542.9,1542.7,0.16886438]
[1674057955835,47.42571997,1542.9,1542.7,0.16886438]
[1674057956107,16.25086163,1542.8,1542.7,0.16886438]
[1674057956287,13.51574,1542.8,1542.7,0.16886438]
[1674057956500,13.02944,1542.8,1542.7,0.16886438]
[1674057956707,6.54772,1542.8,1542.7,0.16886438]
[1674057956885,6.54772,1542.8,1542.7,0.80386438]
[1674057957096,0.066,1542.8,1542.7,0.80386438]
[1674057957306,27.2406,1542.9,1542.7,0.16886438]
[1674057957307,27.3066,1542.9,1542.7,0.16886438]
[1674057957518,33.78799,1542.9,1542.7,0.16886438]
[1674057957847,40.94461916,1542.9,1542.7,0.16886438]
[1674057958418,12.96344,1542.8,1542.7,0.16886438]
[1674057958592,13.70450903,1542.8,1542.7,0.16886438]
[1674057958769,11.02944,1542.8,1542.7,6.438e-05]
[1674057959253,0.00193562,1542.6,1542.2,0.1177]
[1674057959571,19.4502,1542.4,1542.2,0.1177]
[1674057959723,19.5162,1542.4,1542.2,0.1177]
[1674057960177,20.1907183,1542.4,1542.2,0.1177]
[1674057960665,0.4865,1542.3,1542.2,0.1177]
[1674057961004,6.5494,1542.4,1542.2,0.7527]
[1674057961179,0.066,1542.4,1542.2,0.7527]
[1674057961364,6.48753,1542.4,1542.2,0.7527]
[1674057961594,0.066,1542.4,1542.2,0.1177]
[1674057961891,0.00193562,1542.6,1542.2,0.1177]
[1674057962286,12.96734562,1542.6,1542.2,0.1177]
[1674057962497,13.03334562,1542.6,1542.2,0.1177]
[1674057962952,0.06793562,1542.6,1542.2,6.60193]
[1674057963160,0.00193562,1542.6,1542.2,13.15217]
[1674057963333,27.3066,1542.9,1542.2,17.36968448]
[1674057963542,0.066,1542.9,1542.4,19.44948]
[1674057963795,2.36298943,1543.2,1542.6,20.44741]
[1674057964011,2.36298943,1543.2,1542.7,3.0]
[1674057964163,2.36298943,1543.2,1542.7,1.79930458]
[1674057964164,8.84304943,1543.2,1542.7,1.79930458]
[1674057964372,22.54228261,1543.2,1542.4,0.066]
[1674057964633,22.54228261,1543.2,1542.2,10.81011654]
[1674057964634,1.0,1543.1,1542.2,7.66766]
[1674057964848,24.23090771,1543.2,1542.2,7.66766]
[1674057964849,12.96302,1542.9,1542.2,7.66766]
[1674057965059,0.066,1542.9,1542.2,14.1519]
[1674057965228,11.05416261,1543.2,1542.2,14.1519]
[1674057965229,12.96114,1543.1,1542.2,14.1519]
[1674057965443,0.066,1543.1,1542.3,4.20845654]
[1674057965667,2.36298943,1543.2,1542.5,19.44844]
[1674057965878,2.36298943,1543.2,1542.7,6.48186]
[1674057966053,2.36298943,1543.2,1542.7,6.54786]
[1674057966272,2.36298943,1543.2,1542.8,3.0]
[1674057966533,2.36298943,1543.2,1542.9,12.96242]
[1674057966685,2.36298943,1543.2,1543.0,3.0]
[1674057966890,2.36298943,1543.2,1543.1,1.0]
[1674057967383,2.36298943,1543.2,1543.1,7.48046]
[1674057967554,2.36298943,1543.2,1543.1,10.54646]
[1674057967766,2.16259746,1543.4,1543.1,17.02692]
[1674057968008,0.064,1543.3,1543.2,3.0]
[1674057968150,0.064,1543.3,1543.2,15.96008]
[1674057968366,0.064,1543.3,1543.2,0.066]
[1674057968621,0.064,1543.3,1543.0,6.48048]
[1674057968622,2.16259746,1543.4,1543.0,6.54648]
[1674057969006,2.16259746,1543.4,1543.0,0.066]
[1674057969226,2.16259746,1543.4,1542.9,6.54699]
[1674057969417,2.16259746,1543.4,1542.9,0.066]
[1674057969631,2.79933919,1543.4,1542.6,0.066]
[1674057969850,2.79933919,1543.4,1542.5,0.066]
[1674057969851,1.67300125,1543.3,1542.5,0.066]
[1674057970214,0.4862,1543.2,1542.4,6.5492]
[1674057970519,6.48046,1543.1,1542.4,0.066]
[1674057970735,25.5216,1543.1,1542.3,6.48377]
[1674057970902,0.4862,1543.0,1542.3,0.066]
[1674057971117,0.4862,1543.0,1542.4,0.17484451]
[1674057971487,26.68090906,1543.1,1542.4,6.65811451]
[1674057971632,25.5216,1543.1,1542.4,7.72411451]
[1674057972101,25.5216,1543.1,1542.4,0.24084451]
[1674057972329,26.0078,1543.1,1542.4,6.65823451]
[1674057972498,26.0078,1543.1,1542.4,0.24084451]
[1674057972714,26.68063601,1543.1,1542.4,0.17484451]
[1674057973069,33.16122107,1543.1,1542.4,0.17484451]
[1674057973592,1.0,1543.0,1542.4,0.17484451]
[1674057973808,33.16122107,1543.1,1542.4,0.17484451]
[1674057974377,26.0078,1543.1,1542.4,6.65824451]
[1674057974650,25.5216,1543.1,1542.5,3.0]
[1674057974856,25.5216,1543.1,1542.5,10.48295]
[1674057975015,25.5216,1543.1,1542.5,3.066]
[1674057975216,25.5216,1543.1,1542.5,3.0]
[1674057975705,0.4862,1543.0,1542.4,0.24084451]
[1674057976059,20.11773813,1542.9,1542.4,0.17484451]
[1674057976229,20.11773813,1542.9,1542.2,0.1177]
[1674057976230,5.77756697,1542.8,1542.2,0.1177]
[1674057976399,3.67294392,1542.7,1542.2,0.1177]
[1674057976764,19.93471,1542.6,1542.2,0.1177]
[1674057976903,6.4834,1542.4,1542.2,0.1177]
[1674057977113,1.0,1542.2,1541.9,0.17735221]
[1674057977372,6.97117,1542.1,1541.9,0.17735221]
[1674057977706,0.5525,1542.1,1541.9,0.17735221]
[1674057977859,27.1816,1542.3,1541.9,0.17735221]
[1674057978710,37.83059106,1542.3,1541.5,0.066]
[1674057978921,5.65164106,1542.2,1541.4,0.18435221]
[1674057979135,12.9705,1542.0,1541.4,0.18435221]
[1674057979386,0.4866,1541.9,1541.4,0.18435221]
[1674057979695,0.4866,1541.9,1541.2,0.18339329]
[1674057979696,12.97205,1541.8,1541.2,0.18339329]
[1674057979908,1.4867,1541.7,1541.2,0.18339329]
[1674057980059,6.97304,1541.7,1541.2,0.18339329]
[1674057980271,17.69054106,1541.7,1541.2,0.18339329]
[1674057980535,14.16214173,1541.7,1541.2,0.18339329]
[1674057980705,12.97446,1541.5,1541.2,0.18339329]
[1674057980917,12.97446,1541.5,1540.9,3.51698217]
[1674057980918,0.55017987,1541.1,1540.9,3.51698217]
[1674057981150,0.4869,1541.0,1540.9,3.51698217]
[1674057981318,1.0,1540.9,1540.8,0.066]
[1674057981537,1.0,1540.9,1540.2,0.59408]
[1674057981538,1.4869,1540.9,1540.5,0.066]
[1674057981795,1.4869,1540.9,1540.2,0.59408]
[1674057981796,0.4869,1540.8,1540.2,0.59408]
[1674057981999,7.04223,1541.0,1540.2,0.59408]
[1674057982220,6.49008,1540.9,1540.2,0.59408]
[1674057982385,12.98035,1540.8,1540.2,0.59408]
[1674057982598,0.487,1540.7,1540.2,0.59408]
[1674057982804,6.9776,1540.7,1540.2,0.59408]
[1674057983016,7.0436,1540.7,1540.2,0.59408]
[1674057983210,7.0436,1540.7,1540.1,0.08553875]
[1674057983438,17.7148868,1540.7,1540.1,0.08553875]
[1674057983699,13.5342,1540.7,1540.4,0.18575592]
[1674057983983,17.7148868,1540.7,1540.4,0.18575592]
[1674057984320,18.35162853,1540.7,1539.8,3.21441403]
[1674057984504,1.20280369,1539.7,1539.6,3.38471572]
[1674057984716,1.20280369,1539.7,1539.6,3.25871572]
[1674057985513,1.20280369,1539.7,1539.6,3.20732133]
[1674057985870,1.20280369,1539.7,1539.5,16.23548755]
[1674057986084,1.20280369,1539.7,1539.5,3.31044755]
[1674057986339,1.20280369,1539.7,1539.5,3.24444755]
[1674057986549,1.20280369,1539.7,1539.5,9.74001755]
[1674057986740,1.20280369,1539.7,1539.5,9.80601755]
[1674057987152,1.20280369,1539.7,1539.5,6.56157]
[1674057987344,0.066,1540.0,1539.6,0.09335]
[1674057987553,2.453,1540.9,1539.6,0.09335]
[1674057987554,25.3154,1540.8,1539.6,0.09335]
[1674057987796,25.3814,1540.8,1539.9,25.97468]
[1674057987976,25.7783,1540.8,1540.2,6.49249]
[1674057988203,25.2914,1540.8,1540.2,6.55849]
[1674057988546,0.066,1540.8,1540.2,6.55849]
[1674057988724,1.0,1541.0,1540.2,13.05115]
[1674057988940,25.84157987,1541.1,1540.2,13.05115]
[1674057989148,25.84157987,1541.1,1540.5,19.47369]
[1674057989361,25.84157987,1541.1,1540.6,0.23]
[1674057989571,25.84157987,1541.1,1540.7,19.47102]
[1674057989789,25.84157987,1541.1,1540.7,19.53702]
[1674057990131,0.61617987,1541.1,1540.7,19.53702]
[1674057990346,0.55017987,1541.1,1540.9,19.46913]
[1674057990503,0.55017987,1541.1,1540.9,6.55571]
[1674057990712,0.55017987,1541.1,1540.9,0.066]
[1674057991164,0.55017987,1541.1,1540.3,6.49221]
[1674057991165,2.94035295,1540.5,1540.3,6.49221]
[1674057991338,2.94035295,1540.5,1540.4,4.68793265]
[1674057991485,2.94035295,1540.5,1540.3,0.066]
[1674057991700,2.94035295,1540.5,1540.1,0.066]
[1674057992014,0.4871,1540.4,1539.9,6.55785]
[1674057992224,0.4871,1540.4,1540.0,6.49349]
[1674057992484,1.4871,1540.4,1540.0,0.066]
[1674057992663,0.4871,1540.4,1539.8,6.55993]
[1674057993015,0.4871,1540.4,1540.0,6.49331]
[1674057993227,2.94035295,1540.5,1540.0,6.55931]
[1674057993377,2.95e-06,1540.5,1540.2,1.0]
[1674057993589,0.55017987,1541.1,1540.3,26.34916]
[1674057993849,0.55017987,1541.1,1540.3,26.86681561]
[1674057994014,0.55017987,1541.1,1540.4,0.45165561]
[1674057994221,0.55017987,1541.1,1540.6,12.98186]
[1674057994448,0.55017987,1541.1,1540.6,6.55693]
[1674057994638,0.4869,1541.0,1540.6,6.55685]
[1674057994882,0.55017987,1541.1,1540.7,6.49047]
[1674057995097,0.55017987,1541.1,1540.7,6.55646]
[1674057996443,0.55017987,1541.1,1540.7,0.066]
[1674057996652,0.4869,1541.0,1540.3,6.4921]
[1674057996862,4.7146252,1541.0,1540.4,6.49178]
[1674057997130,1.0,1540.9,1540.4,0.052]
[1674057997359,0.4869,1540.8,1540.3,1.911467]
[1674057997528,0.4869,1540.9,1540.2,6.55837]
[1674057997740,0.4869,1540.9,1540.3,6.4922]
[1674057998077,0.4869,1540.9,1540.3,13.05044]
[1674057998264,0.55017987,1541.1,1540.3,13.05044]
[1674057998452,0.55017987,1541.1,1540.6,19.47279]
[1674057998671,0.55017987,1541.1,1540.6,19.53879]
[1674057999081,0.55017987,1541.1,1540.6,13.04786]
[1674057999539,0.55017987,1541.1,1540.6,13.31876]
[1674057999922,0.55017987,1541.1,1540.7,3.0]
[1674058000121,0.55017987,1541.1,1540.8,25.9602]
[1674058000327,0.55017987,1541.1,1540.9,3.2762]
[1674058000572,0.55017987,1541.1,1541.0,19.46787]
[1674058000785,0.04332288,1541.3,1541.1,1.0]
[1674058000994,0.04332288,1541.3,1541.2,19.75535]
[1674058001220,0.04332288,1541.3,1541.2,20.12745368]
[1674058002568,0.04332288,1541.3,1541.2,17.12745368]
[1674058002569,0.67732288,1541.3,1541.2,17.12745368]
[1674058002864,0.04332288,1541.3,1541.2,1.1455405]
[1674058003091,0.04332288,1541.3,1541.1,12.97766]
[1674058003092,0.04332288,1541.3,1541.1,6.55483]
[1674058003307,0.35977244,1541.3,1541.1,6.55283]
[1674058003494,2.28728941,1541.9,1541.2,1.0]
[1674058003706,2.28728941,1541.9,1541.3,0.3388]
[1674058003707,0.04388237,1541.9,1541.3,0.3388]
[1674058003916,0.04388237,1541.9,1541.4,19.46184]
[1674058004147,0.04388237,1541.9,1541.4,19.52784]
[1674058004364,2.37e-06,1541.9,1541.5,8.59266956]
[1674058004575,2.37e-06,1541.9,1541.6,19.46004]
[1674058004741,2.37e-06,1541.9,1541.6,13.03936]
[1674058004949,2.37e-06,1541.9,1541.6,0.066]
[1674058005197,2.37e-06,1541.9,1541.5,6.55303]
[1674058005475,2.37e-06,1541.9,1541.5,0.064]
[1674058005705,2.37e-06,1541.9,1541.4,13.0412]
[1674058005896,2.37e-06,1541.9,1541.5,12.97413]
[1674058006099,2.37e-06,1541.9,1541.5,6.55295]
[1674058006534,2.37e-06,1541.9,1541.5,0.066]
[1674058006762,0.4866,1541.8,1541.2,6.48817]
[1674058006955,1.0,1541.7,1541.4,0.002]
[1674058007165,1.0,1541.7,1541.2,0.064]
[1674058007166,0.4867,1541.6,1541.0,13.0439]
[1674058007439,5.38948658,1541.6,1541.0,6.55491]
[1674058007584,1.22069648,1541.6,1541.0,0.066]
[1674058007795,1.12715456,1541.5,1540.9,0.066]
[1674058008018,0.4868,1541.4,1540.8,0.066]
[1674058008227,0.4868,1541.4,1540.7,0.066]
[1674058008228,8.77114718,1541.4,1540.7,0.066]
[1674058008486,1.0,1541.3,1540.6,6.55685]
[1674058008694,0.4868,1541.2,1540.6,0.066]
[1674058008848,0.4868,1541.2,1540.5,6.49134]
[1674058008849,1.61416983,1541.2,1540.5,6.55734]
[1674058009055,1.15632789,1541.2,1540.5,6.55734]
[1674058009374,0.66952789,1541.1,1540.5,6.55734]
[1674058009584,0.4869,1541.0,1540.5,6.55734]
[1674058009825,1.15642789,1541.0,1540.5,6.55734]
[1674058010049,2.94091839,1540.4,1540.1,6.55304]
[1674058010231,2.94091839,1540.4,1540.1,0.066]
[1674058010446,2.94091839,1540.4,1539.9,6.49379]
[1674058010447,2.94091839,1540.4,1539.9,7.55979]
[1674058010788,2.94091839,1540.4,1540.1,12.98595]
[1674058011002,2.94091839,1540.4,1540.1,0.066]
[1674058011223,0.066,1540.6,1540.1,6.49296]
[1674058011423,1.15652789,1540.7,1540.1,6.55896]
[1674058011578,0.66952789,1540.6,1540.1,0.066]
[1674058011785,2.16432148,1540.7,1540.0,6.55948]
[1674058011996,1.7996275,1540.6,1540.0,0.066]
[1674058012205,1.7996275,1540.6,1539.9,6.49383]
[1674058012206,2.1588916,1540.5,1539.9,6.55983]
[1674058012453,8.6503516,1540.5,1539.9,0.066]
[1674058012631,1.79973845,1540.4,1539.7,6.56056]
[1674058012840,0.4871,1540.3,1539.7,0.066]
[1674058013104,8.77928901,1540.3,1539.6,6.56109]
[1674058013319,11.95219158,1540.3,1539.6,6.56109]
[1674058013545,1.67198148,1540.2,1539.6,6.56105]
[1674058013848,1.67198148,1540.2,1539.7,0.18798854]
[1674058014148,0.4872,1540.1,1539.7,6.68275854]
[1674058014366,1.67198148,1540.2,1539.7,6.74875854]
[1674058014524,1.0,1540.2,1539.7,13.24352854]
[1674058014733,0.4871,1540.3,1539.7,0.25398854]
[1674058014734,2.15908148,1540.3,1539.7,0.25398854]
[1674058014977,8.66026622,1540.3,1539.7,0.18798854]
[1674058015173,8.29290398,1540.2,1539.7,0.18798854]
[1674058015378,0.4872,1540.1,1539.7,0.18798854]
[1674058015592,0.67198148,1540.0,1539.7,6.68273854]
[1674058015805,1.00881474,1540.1,1539.7,0.25398854]
[1674058015806,0.67400893,1540.1,1539.7,0.25398854]
[1674058016046,2.17222501,1540.1,1539.7,0.18798854]
[1674058016201,0.67400893,1540.0,1539.7,0.18798854]
[1674058016406,9.17861987,1540.0,1539.7,0.18798854]
[1674058016673,2.75109987,1540.0,1539.7,0.18798854]
[1674058016831,2.75109987,1540.0,1539.5,0.18835636]
[1674058016832,1.4872,1539.9,1539.5,0.18835636]
[1674058017041,1.4872,1539.9,1539.4,0.066]
[1674058017042,0.49445838,1539.2,1539.0,7.6124387]
[1674058017304,0.49445838,1539.2,1539.0,7.6784387]
[1674058017622,0.49445838,1539.2,1539.0,7.6781387]
[1674058017836,0.49445838,1539.2,1539.1,12.9946]
[1674058017985,26.1039,1539.8,1539.1,13.69498722]
[1674058018195,26.1039,1539.8,1539.2,0.994]
[1674058018459,26.1039,1539.8,1539.3,6.49631]
[1674058018618,26.1039,1539.8,1539.3,0.066]
[1674058018826,0.4873,1539.7,1539.2,0.066]